{"text_format":"3","workbook":"xlsx","n_sheets":3,"sheets":["Mantojuma inventarizācija","Mirušā aktīvi","Mirušā saistības"],"not_rendered":{"defined_names":1},"read":"whole","date_system":"1900"}

{"sheet":"Mantojuma inventarizācija","index":0,"n_rows":45,"n_cols":35,"rows_kept":45,"merged":[[0,1,0,30],[0,31,0,39],[1,1,5,39],[6,1,6,6],[6,7,6,39],[7,1,7,6],[7,7,7,39],[9,1,9,6],[9,7,9,39],[10,1,10,6],[10,7,10,39],[11,1,11,6],[11,7,11,20],[11,21,11,26],[11,27,11,30],[11,31,11,33],[11,34,11,39],[12,1,12,6],[12,7,12,20],[12,21,12,26],[13,1,13,6],[13,7,13,20],[13,21,13,26],[14,1,14,6],[14,7,14,20],[14,21,14,26],[15,1,15,6],[17,1,17,39],[18,1,18,6],[18,7,18,12],[18,13,18,15],[18,16,18,18],[18,19,18,26],[18,27,18,31],[18,32,18,39],[19,1,19,6],[19,7,19,12],[19,13,19,15],[19,16,19,18],[19,19,19,26],[19,27,19,31],[19,32,19,39],[20,1,20,6],[20,7,20,12],[20,13,20,15],[20,16,20,18],[20,19,20,26],[20,27,20,31],[20,32,20,39],[21,1,21,6],[21,7,21,12],[21,13,21,15],[21,16,21,18],[21,19,21,26],[21,27,21,31],[21,32,21,39],[22,1,22,6],[22,7,22,12],[22,13,22,15],[22,16,22,18],[22,19,22,26],[22,27,22,31],[22,32,22,39],[23,1,23,6],[23,7,23,12],[23,13,23,15],[23,16,23,18],[23,19,23,26],[23,27,23,31],[23,32,23,39],[25,1,25,39],[26,1,26,6],[26,7,26,12],[26,13,26,18],[26,19,26,26],[26,27,26,31],[26,32,26,39],[27,1,27,6],[27,7,27,12],[27,13,27,18],[27,19,27,26],[27,27,27,31],[27,32,27,39],[28,1,28,6],[28,7,28,12],[28,13,28,18],[28,19,28,26],[28,27,28,31],[28,32,28,39],[29,1,29,6],[29,7,29,12],[29,13,29,18],[29,19,29,26],[29,27,29,31],[29,32,29,39],[30,1,30,6],[30,7,30,12],[30,13,30,18],[30,19,30,26],[30,27,30,31],[30,32,30,39],[31,1,31,6],[31,7,31,12],[31,13,31,18],[31,19,31,26],[31,27,31,31],[31,32,31,39],[33,1,33,12],[33,14,33,39],[34,1,34,12],[34,14,34,21],[34,22,34,25],[34,26,34,33],[34,34,34,39],[35,2,35,12],[35,14,35,21],[35,22,35,25],[35,26,35,33],[35,34,35,39],[36,2,36,12],[36,14,36,21],[36,22,36,25],[36,26,36,33],[36,34,36,39],[37,2,37,12],[37,14,37,21],[37,22,37,25],[37,26,37,33],[37,34,37,39],[38,2,38,12],[38,14,38,21],[38,22,38,25],[38,26,38,33],[38,34,38,39],[39,2,39,12],[39,14,39,21],[39,22,39,25],[39,26,39,33],[39,34,39,39],[40,2,40,12],[40,14,40,21],[40,22,40,25],[40,26,40,33],[40,34,40,39],[41,2,41,12],[41,14,41,21],[41,22,41,25],[41,26,41,33],[41,34,41,39],[42,2,42,12],[42,14,42,21],[42,22,42,25],[42,26,42,33],[42,34,42,38],[43,2,43,12],[43,14,43,21],[43,22,43,25],[43,26,43,33],[43,34,43,39],[44,2,44,12],[44,14,44,21],[44,22,44,25],[44,26,44,33],[44,34,44,39]]}
[]
[null,"Mantojuma inventarizācija"]
[]
[]
[]
[]
[null,"Mantojuma izpildītājs(i)",{"$nulls":5},"Filips Vanags"]
[null,"Kontaktinformācija",{"$nulls":5},"Galvenā iela 128, Sigulda, Rīgas novads, LV-5599"]
[]
[null,"Mirušā vārds, uzvārds",{"$nulls":5},"Stefans Paegle"]
[null,"Adrese",{"$nulls":5},"Brīvības iela 6789"]
[null,"Pilsēta",{"$nulls":5},"Rīga",{"$nulls":13},"Valsts",{"$nulls":5},"NY",{"$nulls":3},"Pasta indekss",null,null,98052]
[null,"Personas kods",{"$nulls":5},"AAA-GG-SSSS",{"$nulls":13},"Amats",{"$nulls":5},"Zobārsts"]
[null,"Dzimšanas datums",{"$nulls":5},"1965-12-08",{"$nulls":13},"Dzimšanas vieta",{"$nulls":5},"NY"]
[null,"Miršanas datums",{"$nulls":5},{"$f":"TODAY()-3","v":"2022-05-15"},{"$nulls":13},"Miršanas vieta",{"$nulls":5},"NY"]
[null,"Papildinformācija"]
[]
[null,"  Laulātais, bērni un citi apgādājamie"]
[null,"Vārds, uzvārds",{"$nulls":5},"Saistība",{"$nulls":5},"Apgādājamais",null,null,"Vecums",null,null,"Adrese",{"$nulls":7},"Tālruņa numurs",{"$nulls":4},"E-pasts"]
[null,"Aira Zeltiņa",{"$nulls":5},"Pārstāvis",{"$nulls":5},"Nē",null,null,30]
[null,"Ella Krēsliņa",{"$nulls":5},"Laulātais",{"$nulls":5},"Jā",null,null,35]
[null,"Aleksandrs Martinsons",{"$nulls":5},"Bērns",{"$nulls":5},"Jā",null,null,12]
[]
[]
[]
[null,"Profesionālie konsultanti"]
[null,"Konsultāciju tips",{"$nulls":5},"Kontaktpersona",{"$nulls":5},"Uzņēmums",{"$nulls":5},"Adrese",{"$nulls":7},"Tālruņa numurs",{"$nulls":4},"E-pasts"]
[null,"Grāmatvedis"]
[null,"Advokāts/notārs"]
[null,"Cits"]
[]
[]
[]
[null,"  Kontrolsaraksts",{"$nulls":12},"  Mantojuma inventarizācija"]
[null,"    Kontrolsaraksta vienumi",{"$nulls":12},"Mirušā aktīvi",{"$nulls":7},"Vērtība",{"$nulls":3},"Saistības",{"$nulls":7},"Vērtība"]
[null,"✔","Pēdējā griba, testaments vai jebkurš cits dokuments",{"$nulls":11},{"$f":"'Mirušā aktīvi'!B12","v":"Bankas konti"},{"$nulls":7},{"$f":"'Mirušā aktīvi'!G20","v":{"v":0,"d":"0.00 EUR"}},{"$nulls":3},{"$f":"'Mirušā saistības'!B11","v":"Hipotēkas"},{"$nulls":7},{"$f":"'Mirušā saistības'!G18","v":{"v":0,"d":"0.00 EUR"}}]
[null,"✔","Seifa nomas līgums un atslēgas",{"$nulls":11},{"$f":"'Mirušā aktīvi'!B22","v":"Investīcijas"},{"$nulls":7},{"$f":"'Mirušā aktīvi'!G30","v":{"v":0,"d":"0.00 EUR"}},{"$nulls":3},{"$f":"'Mirušā saistības'!B21","v":"Aizņēmumi un kredītlīnijas"},{"$nulls":7},{"$f":"'Mirušā saistības'!G28","v":{"v":0,"d":"0.00 EUR"}}]
[null,"✖","Paroles datoram un tiešsaistes kontiem",{"$nulls":11},{"$f":"'Mirušā aktīvi'!B32","v":"Uzņēmumu daļas"},{"$nulls":7},{"$f":"'Mirušā aktīvi'!G40","v":{"v":0,"d":"0.00 EUR"}},{"$nulls":3},{"$f":"'Mirušā saistības'!B31","v":"Uzņēmumu daļas"},{"$nulls":7},{"$f":"'Mirušā saistības'!G38","v":{"v":0,"d":"0.00 EUR"}}]
[null,"✔","Līgumi par mantojuma sadali",{"$nulls":11},{"$f":"'Mirušā aktīvi'!B42","v":"Nekustamais īpašums"},{"$nulls":7},{"$f":"'Mirušā aktīvi'!G50","v":{"v":0,"d":"0.00 EUR"}},{"$nulls":3},{"$f":"'Mirušā saistības'!B41","v":"Kredītkartes"},{"$nulls":7},{"$f":"'Mirušā saistības'!G48","v":{"v":0,"d":"0.00 EUR"}}]
[null,"✔","Dzīvības apdrošināšanas, veselības/nelaimes gadījumu un apdrošināšanas polises",{"$nulls":11},{"$f":"'Mirušā aktīvi'!B52","v":"Pensiju plāni"},{"$nulls":7},{"$f":"'Mirušā aktīvi'!G60","v":{"v":0,"d":"0.00 EUR"}},{"$nulls":3},{"$f":"'Mirušā saistības'!B51","v":"Citas saistības"},{"$nulls":7},{"$f":"'Mirušā saistības'!G58","v":{"v":0,"d":"0.00 EUR"}}]
[null,"✔","Finanšu pārskati",{"$nulls":11},{"$f":"'Mirušā aktīvi'!B62","v":"Apdrošināšana"},{"$nulls":7},{"$f":"'Mirušā aktīvi'!G70","v":{"v":0,"d":"0.00 EUR"}}]
[null,"✔","Ienākumu nodokļa deklarācijas par pēdējiem trīs gadiem",{"$nulls":11},{"$f":"'Mirušā aktīvi'!B72","v":"Aizņēmumi un hipotekārie kredīti"},{"$nulls":7},{"$f":"'Mirušā aktīvi'!G80","v":{"v":0,"d":"0.00 EUR"}}]
[null,"✔","Dzimšanas un nāves apliecības",{"$nulls":11},{"$f":"'Mirušā aktīvi'!B82","v":"Daļas citos īpašumos un trestos"},{"$nulls":7},{"$f":"'Mirušā aktīvi'!G90","v":{"v":0,"d":"0.00 EUR"}}]
[null,"✖","Īpašumtiesību dokumenti, hipotekārā kredīta un nomas dokumenti",{"$nulls":11},{"$f":"'Mirušā aktīvi'!B92","v":"Personiskā manta un citi aktīvi"},{"$nulls":7},{"$f":"'Mirušā aktīvi'!G100","v":{"v":0,"d":"0.00 EUR"}}]
[null,"☐","Neapmaksātie rēķini un piezīmes",{"$nulls":11},"Aktīvu kopsumma",{"$nulls":7},{"$f":"'Mirušā aktīvi'!G10","v":{"v":0,"d":"0.00 EUR"}},{"$nulls":3},"Saistības kopā",{"$nulls":7},{"$f":"SUM(AI36:AN44)","v":{"v":0,"d":"0.00 EUR"}}]

{"sheet":"Mirušā aktīvi","index":1,"n_rows":100,"n_cols":8,"rows_kept":100,"merged":[[0,1,0,7],[1,1,5,7],[6,1,7,7],[11,1,11,7],[12,1,12,7],[21,1,21,7],[22,1,22,7],[31,1,31,7],[32,1,32,7],[41,1,41,7],[42,1,42,7],[51,1,51,7],[52,1,52,7],[61,1,61,7],[62,1,62,7],[71,1,71,7],[72,1,72,7],[81,1,81,7],[82,1,82,7],[91,1,91,7],[92,1,92,7]]}
[]
[null,"Mirušā aktīvi"]
[]
[]
[]
[]
[null,"Izmantojiet šo darblapu, lai izveidotu mirušā aktīvu inventarizācijas lietu. Jums būs jānosaka katra aktīva vērtība nāves dienā. Pārskatiet visus dokumentus, tai skaitā finanšu pārskatus, apdrošināšanas polises un nodokļu deklarācijas, lai noteiktu tirgus vērtību. Tāpat jums var būt nepieciešams personīgās mantas novērtējums (piem., mākslas darbi, kolekcijas, antīkie priekšmeti utt.). Neaizmirstiet inventarizācijas lietā iekļaut arī ārvalstīs esošus aktīvus, piemēram, nekustamos īpašumus, vērtspapīrus un ārvalstu uzņēmumu daļas. Iespējams, ka jums būs jāvēršas pie speciālista, lai noteiktu precīzu ārvalstīs esošo aktīvu vērtību."]
[]
[]
[null,"Aktīvu kopsumma",{"$nulls":4},{"$f":"tblBankAccounts[[#Totals],[Bilance ]]+tblPersonalInvestments[[#Totals],[Tirgus vērtība]]+tblBusinessInterests[[#Totals],[Vērtība ]]+tblRealEstate[[#Totals],[Tirgus cena]]+tblPensionPlans[[#Totals],[Vērtība ]]+tblInsurance[[#Totals],[Naudas vērtība ]]+tblMortgages[[#Totals],[Parāda bilance ]]+tblTrusts[[#Totals],[Izmaksas summa]]+tblOtherAssets[[#Totals],[Vērtība ]]","v":{"v":0,"d":"0.00 EUR"}}]
[]
[null,"Bankas konti"]
[null,"Norādiet visus bankas kontus, tai skaitā skaidro naudu, ceļotāju čekus, naudas pasūtījumus un komercbanku, krājbanku, kredītu apvienību un citus kontus Norādiet visus kontiem piesaistītos vārdus, uzvārdus un faktisko naudas vērtību, norādot centus un eiro, nāves brīdī."]
[null,"Finanšu iestāde ","Adrese","Tālrunis","Konta numurs","Konta tips","Bilance ","Piezīmes"]
[]
[]
[]
[]
[]
[null,"Kopā",{"$nulls":4},{"$f":"SUBTOTAL(109,tblBankAccounts[[Bilance ]])","v":{"v":0,"d":"0.00 EUR"}}]
[]
[null,"Investīcijas"]
[null,"Norādiet naudas kontus, maržas kontus, no nodokļiem atbrīvoto uzkrājumu kontus, reģistrētos pensiju plānus (RRSP), reģistrētos pensijas ienākumu fondus (RRIF), fiksētos RRIF, fiksētos RRSP, mūža ienākumu fondus, plānoto pensijas ienākumu fondus, reģistrētos uzkrājumu plānus izglītībai, beztermiņa obligācijas utt."]
[null,"Uzņēmums","Adrese","Tālrunis","Konta numurs","Labuma guvējs","Tirgus vērtība","Piezīmes"]
[]
[]
[]
[]
[]
[null,"Kopā",{"$nulls":4},{"$f":"SUBTOTAL(109,tblPersonalInvestments[Tirgus vērtība])","v":{"v":0,"d":"0.00 EUR"}}]
[]
[null,"Uzņēmumu daļas"]
[null,"Norādiet visas uzņēmumu daļas, tai skaitā individuālo komersantu, profesionālo prakšu, korporāciju, sabiedrību ar ierobežotu atbildību un apvienību, kopuzņēmumu un citu uzņēmumu, kuru akcijas netiek tirgotas biržā, daļas. "]
[null,"Uzņēmuma nosaukums","Adrese","Tālrunis","Kontaktinformācija","Tips","Vērtība ","Piezīmes"]
[]
[]
[]
[]
[]
[null,"Kopā",{"$nulls":4},{"$f":"SUBTOTAL(109,tblBusinessInterests[[Vērtība ]])","v":{"v":0,"d":"0.00 EUR"}}]
[]
[null,"Nekustamais īpašums"]
[null,"Norādiet visu nekustamo īpašumu, kas pieder mirušajai personai un/vai tās laultājam/partnerim pilnībā, daļēji vai pieder jebkāda veida daļas nekustamajā īpašumā, tai skaitā daļas, kas iegādātas atpūtas kompleksos un kopīpašumos. Iegūstiet īpašumtiesību apliecinošo dokumentu kopijas. Norādiet nekustamā īpašuma aprakstu un faktisko adresi. Norādiet atbilstošu īpašuma tirgus cenu, kas ir noteikta atbilstoši jaunākajam nodokļu eksperta novērtējumam."]
[null,"Adrese","Reģistrēts uz","Tālrunis","Kontaktinformācija","Iegādes cena","Tirgus cena","Piezīmes"]
[]
[]
[]
[]
[]
[null,"Kopā",{"$nulls":3},{"$f":"SUBTOTAL(109,tblRealEstate[Iegādes cena])","v":{"v":0,"d":"0.00 EUR"}},{"$f":"SUBTOTAL(109,tblRealEstate[Tirgus cena])","v":{"v":0,"d":"0.00 EUR"}}]
[]
[null,"Pensiju plāni"]
[null,"Norādiet maksājumus, naudas pirkumus vai iemaksas, DPSP vai grupas RRSP utt."]
[null,"Uzņēmums","Tālrunis","Plāna tips","Labuma guvējs","E-pasts","Vērtība ","Piezīmes"]
[]
[]
[]
[]
[]
[null,"Kopā",{"$nulls":4},{"$f":"SUBTOTAL(109,tblPensionPlans[[Vērtība ]])","v":{"v":0,"d":"0.00 EUR"}}]
[]
[null,"Apdrošināšana"]
[null,"Norādiet apdrošināšanas polises ar saņēmēju vārdiem, uzvārdiem un investīciju kontus, kas tiks nodoti pēc nāves, bet nav mirušā aktīvs. Ja tiesa pieprasīs informāciju par šiem aktīviem, gribas izpildītājam būs ērti pieejams šis aktīvu saraksts, lai paskaidrotu, kāpēc šie aktīvi nav norādīti mirušā mantas lietā."]
[null,"Izdevējs","Polises numurs","Tālrunis","Labuma guvējs","Faktiskā vērtība ","Naudas vērtība ","Piezīmes"]
[]
[]
[]
[]
[]
[null,"Kopā",{"$nulls":3},{"$f":"SUBTOTAL(109,tblInsurance[[Faktiskā vērtība ]])","v":{"v":0,"d":"0.00 EUR"}},{"$f":"SUBTOTAL(109,tblInsurance[[Naudas vērtība ]])","v":{"v":0,"d":"0.00 EUR"}}]
[]
[null,"Aizņēmumi un hipotekārie kredīti"]
[null,"Norādiet aizņēmumus un hipotekāros kredītus, kuros aizdevējs bija mirusī persona."]
[null,"Aizņēmēja vārds, uzvārds","Adrese","Tālrunis","Tips","Sākotnējā summa","Parāda bilance ","Piezīmes"]
[]
[]
[]
[]
[]
[null,"Kopā",{"$nulls":3},{"$f":"SUBTOTAL(109,tblMortgages[Sākotnējā summa])","v":{"v":0,"d":"0.00 EUR"}},{"$f":"SUBTOTAL(109,tblMortgages[[Parāda bilance ]])","v":{"v":0,"d":"0.00 EUR"}}]
[]
[null,"Daļas citos īpašumos un trestos"]
[null,"Uzskaitiet aktīvus, kas ir reģistrēti mirušās personas vārdā, bet pieder citām personām (piemēram, aktīvi, kas uzticēti mirušajai personai kā aizbildnim vai ar pilnvaras palīdzību). "]
[null,"Īpašuma/tresta nosaukums","Mantojuma izpildītājs(i)","Tālrunis","Adrese","E-pasts","Izmaksas summa","Piezīmes"]
[]
[]
[]
[]
[]
[null,"Kopā",{"$nulls":4},{"$f":"SUBTOTAL(109,tblTrusts[Izmaksas summa])","v":{"v":0,"d":"0.00 EUR"}}]
[]
[null,"Personiskā manta un citi aktīvi"]
[null,"Norādiet visu personisko mantu, piemēram, automašīnas, dārglietas, mākslas darbi, antīkie priekšmeti, mēbeles. Norādiet priekšmetus, kas varētu būt glabāti seifā vai citā drošā veidā."]
[null,"Vienuma apraksts","Atrašanās vieta","Tālrunis","Kontaktinformācija","Labuma guvējs","Vērtība ","Piezīmes"]
[]
[]
[]
[]
[]
[null,"Kopā",{"$nulls":4},{"$f":"SUBTOTAL(109,tblOtherAssets[[Vērtība ]])","v":{"v":0,"d":"0.00 EUR"}}]

{"sheet":"Mirušā saistības","index":2,"n_rows":58,"n_cols":8,"rows_kept":58,"merged":[[0,1,0,7],[1,1,5,7],[6,1,6,7],[10,1,10,7],[20,1,20,7],[30,1,30,7],[40,1,40,7],[50,1,50,7]]}
[]
[null,"Saistības"]
[]
[]
[]
[]
[null,"Izmantojiet šo darblapu, lai uzskaitītu mirušās personas saistības gan vietējās, gan ārvalstīs. Jums būs jānorāda visu saistību vērtība nāves dienā."]
[]
[null,"Aktīvu kopsumma",{"$nulls":4},{"$f":"SUM(G18,G28,G38,G48,G58)","v":{"v":0,"d":"0.00 EUR"}}]
[]
[null,"Hipotēkas"]
[null,"Finanšu iestāde ","Adrese","Tālrunis","Reģistrēts uz","Konta numurs","Bilance ","Piezīmes"]
[]
[]
[]
[]
[]
[null,"Kopā",{"$nulls":4},{"$f":"SUBTOTAL(109,tblBankAccounts2[[Bilance ]])","v":{"v":0,"d":"0.00 EUR"}}]
[]
[]
[null,"Aizņēmumi un kredītlīnijas"]
[null,"Finanšu iestāde","Adrese","Tālrunis"," Konta numurs","Tips","Bilance ","Piezīmes"]
[]
[]
[]
[]
[]
[null,"Kopā",{"$nulls":4},{"$f":"SUBTOTAL(109,tblPersonalInvestments3[[Bilance ]])","v":{"v":0,"d":"0.00 EUR"}}]
[]
[]
[null,"Uzņēmumu daļas"]
[null,"Uzņēmuma nosaukums","Adrese"," Tālrunis"," Kontaktinformācija","Tips","Vērtība ","Piezīmes"]
[]
[]
[]
[]
[]
[null,"Kopā",{"$nulls":4},{"$f":"SUBTOTAL(109,tblBusinessInterests4[[Vērtība ]])","v":{"v":0,"d":"0.00 EUR"}}]
[]
[]
[null,"Kredītkartes"]
[null,"Kredītkartes uzņēmums","Uzņēmuma adrese","Tālrunis","Kartes numurs","Beigu datums ","Bilance ","Piezīmes"]
[]
[]
[]
[]
[]
[null,"Kopā",{"$nulls":4},{"$f":"SUBTOTAL(109,tblRealEstate5[[Bilance ]])","v":{"v":0,"d":"0.00 EUR"}}]
[]
[]
[null,"Citas saistības"]
[null,"Vienuma apraksts","Atrašanās vieta","Tālrunis","Kontaktinformācija","Labuma guvējs","Vērtība ","Piezīmes"]
[]
[]
[]
[]
[]
[null,"Kopā",{"$nulls":4},{"$f":"SUBTOTAL(109,tblPensionPlans6[[Vērtība ]])","v":{"v":0,"d":"0.00 EUR"}}]